fUSD/lending_fUSD_20241102
["ID","MTS","AMOUNT","RATE_DAILY","PERIOD"]
[341171963,1730521838732,-518.63,0.00043999,9]
[341171964,1730521838741,-271.595949,0.00043999,14]
[341171965,1730521838751,-271.595949,0.00043999,14]
[341171966,1730521838760,-271.595949,0.00043999,14]
[341171967,1730521838769,-271.595949,0.00043999,14]
[341171968,1730521838779,-500.0,0.00043999,9]
[341171969,1730521838789,-500.0,0.00043999,9]
[341171970,1730521838798,-500.0,0.00043999,9]
[341171971,1730521838807,-500.0,0.00043999,9]
[341171972,1730521838817,-500.0,0.00043999,9]
[341171973,1730521838826,-500.0,0.00043999,9]
[341171974,1730521838835,-500.0,0.00043999,9]
[341171975,1730521838846,-447.32906298,0.00043999,9]
[341171976,1730521838855,-274.392867,0.00043999,14]
[341171977,1730521838865,-274.392867,0.00043999,14]
[341171978,1730521838875,-274.392867,0.00043999,14]
[341171979,1730521838885,-274.392867,0.00043999,14]
[341171980,1730521838897,-274.392867,0.00043999,14]
[341171981,1730521838907,-274.392867,0.00043999,14]
[341171982,1730521838917,-274.392867,0.00043999,14]
[341171983,1730521838927,-274.392867,0.00043999,14]
[341171984,1730521838937,-151.0,0.00043999,14]
[341171985,1730521838947,-272.339959,0.00043999,14]
[341171986,1730521838956,-500.0,0.00043999,9]
[341171987,1730521838966,-500.0,0.00043999,9]
[341171988,1730521839070,-500.0,0.00043999,9]
[341171989,1730521839080,-556.31136491,0.00043999,9]
[341171990,1730521839090,-151.0,0.00043999,14]
[341171991,1730521839103,-151.0,0.00043999,14]
[341171992,1730521839112,-151.0,0.00043999,14]
[341171993,1730521839122,-272.659337,0.00043999,14]
[341171994,1730521839132,-697.18,0.00043999,9]
[341171995,1730521839142,-697.18,0.00043999,9]
[341171996,1730521839152,-697.18,0.00043999,9]
[341171997,1730521839162,-500.0,0.00043999,9]
[341171998,1730521839172,-697.18,0.00043999,9]
[341171999,1730521839182,-500.0,0.00043999,9]
[341172000,1730521839191,-697.18,0.00043999,9]
[341172001,1730521839202,-500.0,0.00043999,9]
[341172002,1730521839211,-500.0,0.00043999,9]
[341172003,1730521839221,-500.0,0.00043999,9]
[341172004,1730521839230,-500.0,0.00043999,9]
[341172005,1730521839239,-500.0,0.00043999,9]
[341172006,1730521839249,-500.0,0.00043999,9]
[341172007,1730521839258,-500.0,0.00043999,9]
[341172008,1730521839270,-500.0,0.00043999,9]
[341172009,1730521839281,-500.0,0.00043999,9]
[341172010,1730521839291,-500.0,0.00043999,9]
[341172011,1730521839301,-500.0,0.00043999,9]
[341172012,1730521839315,-500.0,0.00043999,9]
[341172013,1730521839325,-500.0,0.00043999,9]
[341172014,1730521839335,-500.0,0.00043999,9]
[341172015,1730521839346,-500.0,0.00043999,9]
[341172016,1730521839356,-500.0,0.00043999,9]
[341172017,1730521839366,-500.0,0.00043999,9]
[341172018,1730521839376,-500.0,0.00043999,9]
[341172019,1730521839386,-500.0,0.00043999,9]
[341172020,1730521839396,-260.94466188,0.00043999,9]
[341172021,1730521839406,-500.0,0.00043999,9]
[341172022,1730521839416,-500.0,0.00043999,9]
[341172023,1730521839426,-186.3982214,0.00043999,9]
[341172024,1730521839436,-520.91577703,0.00043999,9]
[341172025,1730521839446,-500.0,0.00043999,9]
[341172026,1730521839456,-3044.67308759,0.00044,30]
[341172027,1730521839466,-101577.0,0.00044,30]
[341172028,1730521839476,-20065.0,0.00044,2]
[341172029,1730521839486,-384855.0,0.00044,2]
[341172031,1730521839495,-585897.89317,0.00044,2]
[341172032,1730521839505,-151.0,0.00044,14]
[341172033,1730521839514,-178658.999998,0.00044,120]
[341172034,1730521839524,-271.595949,0.00044,14]
[341172035,1730521839534,-271.595955,0.00044,14]
[341172036,1730521839543,-274.392867,0.00044,14]
[341172037,1730521839553,-274.392858,0.00044,14]
[341172038,1730521839562,-249.51990081,0.00044,30]
[341172039,1730521839572,-500.0,0.00044007,2]
[341172040,1730521839582,-500.0,0.00044007,2]
[341172041,1730521839592,-518.63,0.00044007,9]
[341172042,1730521839602,-500.0,0.00044007,9]
[341172043,1730521839612,-67169.46933181,0.00044008,2]
[341172044,1730521839621,-222.49386196,0.00044022,28]
[341172045,1730521839630,-222.49386196,0.00044135,28]
[341172046,1730521839639,-482.0,0.00044135,7]
[341172047,1730521839649,-152.42767006,0.00044167,2]
[341172048,1730521839658,-1369.86701277,0.00044167,2]
[341172049,1730521839667,-150.0,0.00044167,2]
[341172050,1730521839677,-150.0,0.00044194,2]
[341172051,1730521839687,-20609.7027336,0.00044217,2]
[341172052,1730521839697,-10658.2493063,0.00044217,2]
[341172053,1730521839707,-158.0,0.00044219,120]
[341172054,1730521839717,-1306.1291934,0.00044225,2]
[341172055,1730521839727,-2843.0343464,0.00044225,2]
[341172056,1730521839736,-150.0,0.00044236,2]
[341172057,1730521839746,-150.0,0.00044238,2]
[341172058,1730521839755,-222.49386196,0.00044248,28]
[341172059,1730521839765,-165.45,0.00044255,2]
[341172060,1730521839774,-150.0,0.00044261,2]
[341172061,1730521839783,-150.0,0.00044264,2]
[341172062,1730521839793,-150.0,0.00044278,2]
[341172063,1730521839802,-150.0,0.00044291,2]
[341172064,1730521839811,-150.0,0.00044306,2]
[341172065,1730521839820,-150.0,0.00044309,2]
[341172066,1730521839829,-150.0,0.00044317,2]
[341172067,1730521839839,-150.0,0.00044332,2]
[341172068,1730521839850,-150.0,0.0004435,2]
[341172069,1730521839859,-150.0,0.00044354,2]
[341172070,1730521839868,-222.49386196,0.00044361,28]
[341172071,1730521839878,-152.0,0.00044387,3]
[341172072,1730521839889,-150.0,0.0004439,2]
[341172073,1730521839898,-515.611061,0.000444,44]
[341172074,1730521839908,-2293.68694648,0.000444,14]
[341172075,1730521839916,-150.0,0.00044416,2]
[341172076,1730521839926,-500.0,0.00044417,9]
[341172077,1730521839936,-280.25638171,0.00044417,9]
[341172078,1730521839946,-338.57709744,0.00044417,9]
[341172079,1730521839955,-500.0,0.00044417,9]
[341172080,1730521839965,-500.0,0.00044417,9]
[341172081,1730521839974,-500.0,0.00044417,9]
[341172082,1730521839983,-515.2363728,0.00044417,7]
[341172083,1730521839992,-500.0,0.00044417,9]
[341172084,1730521840002,-500.0,0.00044417,9]
[341172085,1730521840011,-500.0,0.00044418,9]
[341172086,1730521840020,-497.35373811,0.00044418,9]
[341172087,1730521840030,-150.0,0.00044418,2]
[341172088,1730521840039,-150.0,0.00044422,2]
[341172089,1730521840049,-150.0,0.00044422,2]
[341172090,1730521840059,-150.0,0.00044423,2]
[341172091,1730521840068,-150.0,0.00044424,2]
[341172092,1730521840078,-150.0,0.00044428,2]
[341172093,1730521840088,-150.0,0.00044429,2]
[341172094,1730521840099,-150.0,0.00044431,2]
[341172095,1730521840111,-150.0,0.00044432,2]
[341172096,1730521840121,-150.0,0.00044436,2]
[341172097,1730521840130,-150.0,0.00044438,2]
[341172098,1730521840139,-150.0,0.00044441,2]
[341172099,1730521840150,-150.0,0.00044442,2]
[341172100,1730521840159,-150.0,0.00044444,2]
[341172101,1730521840168,-150.0,0.00044446,2]
[341172102,1730521840177,-150.0,0.00044446,2]
[341172103,1730521840186,-150.0,0.00044448,2]
[341172104,1730521840196,-258.27310671,0.00044453,2]
[341172105,1730521840206,-150.0,0.00044454,2]
[341172106,1730521840216,-150.0,0.00044455,2]
[341172107,1730521840226,-150.0,0.00044459,2]
[341172108,1730521840235,-150.0,0.00044459,2]
[341172109,1730521840244,-150.0,0.0004446,2]
[341172110,1730521840254,-150.0,0.00044463,2]
[341172111,1730521840263,-150.0,0.00044465,2]
[341172112,1730521840274,-150.0,0.00044466,2]
[341172113,1730521840284,-150.0,0.00044469,2]
[341172114,1730521840293,-150.0,0.00044469,2]
[341172115,1730521840303,-222.49386196,0.00044473,28]
[341172116,1730521840315,-150.0,0.00044474,2]
[341172117,1730521840325,-150.0,0.00044474,2]
[341172118,1730521840336,-150.0,0.00044476,2]
[341172119,1730521840349,-150.0,0.00044478,2]
[341172120,1730521840358,-150.0,0.00044488,2]
[341172121,1730521840368,-150.0,0.00044488,2]
[341172122,1730521840377,-150.0,0.00044488,2]
[341172123,1730521840388,-150.0,0.00044496,2]
[341172124,1730521840397,-150.0,0.00044496,2]
[341172125,1730521840407,-150.3544743,0.000445,15]
[341172126,1730521840416,-150.0,0.00044504,2]
[341172127,1730521840426,-150.0,0.00044505,2]
[341172128,1730521840435,-150.0,0.00044508,2]
[341172129,1730521840445,-150.0,0.00044509,2]
[341172130,1730521840455,-150.0,0.00044513,2]
[341172131,1730521840464,-150.0,0.00044514,2]
[341172132,1730521840474,-150.0,0.00044517,2]
[341172133,1730521840483,-150.0,0.00044519,2]
[341172134,1730521840492,-150.0,0.00044522,2]
[341172135,1730521840502,-206.72772031,0.00044522,2]
[341172136,1730521840512,-553.67919585,0.00044522,2]
[341172137,1730521840521,-150.0,0.00044525,2]
[341172138,1730521840530,-150.0,0.00044526,2]
[341172139,1730521840540,-150.0,0.00044528,2]
[341172140,1730521840549,-150.0,0.00044533,2]
[341172141,1730521840559,-150.0,0.00044534,2]
[341172142,1730521840569,-150.0,0.00044535,2]
[341172143,1730521840578,-500.0,0.00044538,2]
[341172144,1730521840587,-150.0,0.00044538,2]
[341172145,1730521840596,-500.0,0.00044538,2]
[341172146,1730521840606,-518.63,0.00044538,9]
[341172147,1730521840616,-500.0,0.00044538,9]
[341172148,1730521840625,-150.0,0.00044541,2]
[341172149,1730521840635,-150.0,0.00044541,2]
[341172150,1730521840645,-150.0,0.00044542,2]
[341172151,1730521840654,-150.0,0.00044543,2]
[341172152,1730521840664,-150.0,0.00044544,2]
[341172153,1730521840673,-150.0,0.00044545,2]
[341172154,1730521840683,-500.0,0.00044547,4]
[341172155,1730521840692,-150.0,0.00044549,2]
[341172156,1730521840702,-150.0,0.00044553,2]
[341172157,1730521840711,-150.0,0.00044554,2]
[341172158,1730521840720,-553.67919584,0.00044554,2]
[341172159,1730521840730,-500.0,0.00044556,4]
[341172160,1730521840740,-150.0,0.00044559,2]
[341172161,1730521840750,-500.0,0.00044565,4]
[341172162,1730521840759,-150.0,0.00044566,2]
[341172163,1730521840769,-150.0,0.00044571,2]
[341172164,1730521840779,-500.0,0.00044574,4]
[341172165,1730521840788,-150.0,0.00044575,2]
[341172166,1730521840798,-150.0,0.00044578,2]
[341172167,1730521840807,-150.0,0.00044579,2]
[341172168,1730521840816,-150.0,0.0004458,2]
[341172169,1730521840825,-150.0,0.00044582,2]
[341172170,1730521840835,-500.0,0.00044582,4]
[341172171,1730521840846,-150.0,0.00044584,2]
[341172172,1730521840855,-500.0,0.00044585,9]
[341172173,1730521840865,-34019.11854496,0.00044585,2]
[341172174,1730521840874,-697.18,0.00044585,9]
[341172175,1730521840884,-34019.11854496,0.00044586,2]
[341172176,1730521840896,-150.0,0.00044586,2]
[341172177,1730521840905,-605.71898969,0.00044586,2]
[341172178,1730521840915,-34019.11854496,0.00044586,2]
[341172179,1730521840924,-222.49386196,0.00044586,28]
[341172180,1730521840934,-206.72772031,0.00044586,2]
[341172181,1730521840943,-323.02603257,0.00044586,2]
[341172182,1730521840954,-553.67919584,0.00044586,2]
[341172183,1730521840963,-150.0,0.00044588,2]
[341172184,1730521840973,-150.0,0.00044589,2]
[341172185,1730521840982,-500.0,0.00044591,4]
[341172186,1730521840991,-150.0,0.00044592,2]
[341172187,1730521841001,-500.0,0.00044595,120]
[341172188,1730521841010,-150.0,0.00044595,2]
[341172189,1730521841019,-150.0,0.00044596,2]
[341172190,1730521841029,-150.5,0.00044598,30]
[341172191,1730521841038,-295.08,0.00044598,30]
[341172192,1730521841047,-150.0,0.00044599,2]
[341172193,1730521841057,-500.0,0.00044599,9]
[341172194,1730521841066,-500.0,0.00044599,9]
[341172195,1730521841075,-500.0,0.00044599,9]
[341172196,1730521841084,-500.0,0.00044599,9]
[341172197,1730521841093,-430.0,0.000446,32]
[341172198,1730521841104,-1614.84967244,0.000446,7]
[341172199,1730521841114,-89000.0,0.000446,120]
[341172200,1730521841123,-500.0,0.000446,4]
[341172201,1730521841133,-1245.16,0.000446,2]
[341172202,1730521841142,-981.05234731,0.000446,2]
[341172203,1730521841151,-671.3900001,0.000446,2]
[341172204,1730521841161,-4264.6436908,0.000446,11]
[341172205,1730521841170,-31780.64456739,0.000446,120]
[341172206,1730521841179,-150.0,0.00044602,2]
[341172207,1730521841189,-150.0,0.00044604,2]
[341172208,1730521841198,-500.0,0.00044606,9]
[341172209,1730521841208,-500.0,0.00044606,9]
[341172210,1730521841217,-500.0,0.00044606,9]
[341172211,1730521841227,-538.73364282,0.00044606,9]
[341172212,1730521841236,-500.0,0.00044606,9]
[341172213,1730521841245,-500.0,0.00044606,9]
[341172214,1730521841254,-500.0,0.00044607,2]
[341172215,1730521841264,-150.0,0.00044607,2]
[341172216,1730521841273,-150.0,0.00044607,2]
[341172217,1730521841282,-500.0,0.00044607,2]
[341172218,1730521841292,-518.63,0.00044607,9]
[341172219,1730521841301,-500.0,0.00044607,9]
[341172220,1730521841313,-150.5,0.00044608,30]
[341172221,1730521841323,-150.5,0.00044608,30]
[341172222,1730521841333,-150.0,0.0004461,2]
[341172223,1730521841342,-150.0,0.00044611,2]
[341172224,1730521841427,-150.0,0.00044611,2]
[341172225,1730521841447,-150.0,0.00044612,2]
[341172226,1730521841456,-500.0,0.00044615,9]
[341172227,1730521841466,-12435.36092584,0.00044616,2]
[341172228,1730521841563,-4693.50733636,0.00044616,2]
[341172229,1730521841573,-13648.0337908,0.00044616,2]
[341172230,1730521841582,-10167.1993194,0.00044616,2]
[341172231,1730521841592,-6686.364848,0.00044616,2]
[341172232,1730521841603,-3205.5303766,0.00044616,2]
[341172233,1730521841613,-8858.1456333,0.00044616,2]
[341172234,1730521841622,-7058.0419603,0.00044616,2]
[341172235,1730521841631,-5257.9382873,0.00044616,2]
[341172236,1730521841642,-3457.8346143,0.00044616,2]
[341172237,1730521841651,-1657.7309413,0.00044616,2]
[341172238,1730521841662,-1361.3551778,0.00044616,2]
[341172239,1730521841672,-1416.5811623,0.00044616,2]
[341172240,1730521841681,-1471.8071468,0.00044616,2]
[341172241,1730521841691,-1527.0331313,0.00044616,2]
[341172242,1730521841701,-1582.2591157,0.00044616,2]
[341172243,1730521841711,-150.5,0.00044618,30]
[341172244,1730521841720,-150.5,0.00044618,30]
[341172245,1730521841730,-150.0,0.00044619,2]
[341172246,1730521841739,-150.0,0.00044619,2]
[341172247,1730521841748,-697.18,0.00044619,9]
[341172248,1730521841757,-49703.18200925,0.0004462,2]
[341172249,1730521841767,-400.0,0.00044621,10]
[341172250,1730521841776,-314.63852069,0.00044621,10]
[341172251,1730521841785,-500.0,0.00044621,2]
[341172252,1730521841795,-500.0,0.00044621,9]
[341172253,1730521841804,-500.0,0.00044621,9]
[341172254,1730521841813,-500.0,0.00044621,9]
[341172255,1730521841823,-500.0,0.00044621,9]
[341172256,1730521841832,-500.0,0.00044621,9]
[341172257,1730521841841,-500.0,0.00044621,2]
[341172258,1730521841855,-500.0,0.00044621,9]
[341172259,1730521841864,-521.42052972,0.00044621,9]
[341172260,1730521841874,-518.63,0.00044621,9]
[341172261,1730521841883,-427.83363608,0.00044621,9]
[341172262,1730521841892,-697.18,0.00044621,9]
[341172263,1730521841901,-500.0,0.00044621,9]
[341172264,1730521841911,-500.0,0.00044621,9]
[341172265,1730521841920,-500.0,0.00044621,9]
[341172266,1730521841929,-500.0,0.00044621,9]
[341172267,1730521841939,-500.0,0.00044621,9]
[341172268,1730521841948,-328.37,0.00044621,9]
[341172269,1730521841957,-110787.38049745,0.00044622,7]
[341172270,1730521841969,-812.9464343,0.00044622,7]
[341172271,1730521841980,-3012.42370077,0.00044622,7]
[341172272,1730521841991,-2381.48970547,0.00044622,7]
[341172273,1730521842009,-500.0,0.00043999,9]
[341172274,1730521842018,-107534.99481135,0.00044622,7]
[341172275,1730521842029,-4787.60419941,0.00044622,7]
[341172276,1730521842040,-517.85511205,0.00044622,7]
[341172277,1730521842052,-1273.0286153,0.00044622,7]
[341172278,1730521842063,-29158.50915301,0.00044622,7]
[341172279,1730521842072,-150.0,0.00044622,2]
[341172280,1730521842081,-150.0,0.00044625,2]
[341172281,1730521842090,-400.0,0.00044627,10]
[341172282,1730521842101,-400.0,0.00044629,10]
[341172283,1730521842111,-453.0,0.0004463,120]
[341172284,1730521842120,-150.0,0.00044632,2]
[341172285,1730521842129,-400.0,0.00044634,10]
[341172286,1730521842138,-150.0,0.00044634,2]
[341172287,1730521842148,-403.52977178,0.00044635,10]
[341172288,1730521842157,-500.0,0.00044637,2]
[341172289,1730521842166,-500.0,0.00044637,2]
[341172290,1730521842176,-518.63,0.00044637,9]
[341172291,1730521842185,-348.48504546,0.00044637,9]
[341172292,1730521842194,-500.0,0.00044638,2]
[341172293,1730521842203,-500.0,0.00044638,2]
[341172294,1730521842212,-500.0,0.00044638,2]
[341172295,1730521842222,-500.0,0.00044638,2]
[341172296,1730521842230,-500.0,0.00044638,2]
[341172297,1730521842239,-500.0,0.00044638,2]
[341172298,1730521842248,-500.0,0.00044638,2]
[341172299,1730521842257,-500.0,0.00044638,2]
[341172300,1730521842266,-500.0,0.00044638,2]
[341172301,1730521842275,-500.0,0.00044638,2]
[341172302,1730521842284,-249.48820349,0.00044638,2]
[341172303,1730521842294,-500.0,0.00044638,9]
[341172304,1730521842303,-150.0,0.00044638,2]
[341172305,1730521842316,-500.0,0.00044638,9]
[341172306,1730521842325,-500.0,0.00044638,9]
[341172307,1730521842334,-500.0,0.00044638,9]
[341172308,1730521842343,-500.0,0.00044638,9]
[341172309,1730521842354,-500.0,0.00044638,2]
[341172310,1730521842363,-500.0,0.00044638,2]
[341172312,1730521842373,-500.0,0.00044638,2]
[341172314,1730521842382,-500.0,0.00044638,2]
[341172316,1730521842393,-500.0,0.00044638,2]
[341172318,1730521842403,-500.0,0.00044638,2]
[341172319,1730521842414,-500.0,0.00044638,2]
[341172320,1730521842424,-500.0,0.00044638,2]
[341172321,1730521842434,-500.0,0.00044638,2]
[341172322,1730521842445,-614.19007148,0.00044638,2]
[341172323,1730521842457,-518.63,0.00044638,9]
[341172324,1730521842466,-518.63,0.00044638,9]
[341172325,1730521842478,-518.63,0.00044638,9]
[341172326,1730521842490,-518.63,0.00044638,9]
[341172327,1730521842499,-518.63,0.00044638,9]
[341172328,1730521842509,-518.63,0.00044638,9]
[341172329,1730521842521,-518.63,0.00044638,9]
[341172330,1730521842530,-518.63,0.00044638,9]
[341172331,1730521842539,-518.63,0.00044638,9]
[341172332,1730521842549,-518.63,0.00044638,9]
[341172333,1730521842561,-518.63,0.00044638,9]
[341172334,1730521842571,-518.71098107,0.00044638,9]
[341172335,1730521842581,-3044.67308759,0.00044639,30]
[341172336,1730521842590,-3044.67308759,0.00044639,30]
[341172337,1730521842600,-3044.67308759,0.00044639,30]
[341172338,1730521842609,-3044.67308759,0.00044639,30]
[341172339,1730521842618,-500.0,0.00044646,9]
[341172340,1730521842628,-500.0,0.00044646,9]
[341172341,1730521842638,-500.0,0.00044646,9]
[341172342,1730521842647,-500.0,0.00044646,9]
[341172343,1730521842657,-500.0,0.00044646,9]
[341172344,1730521842667,-556.13082267,0.00044646,9]
[341172345,1730521842677,-500.0,0.00044646,9]
[341172346,1730521842687,-483.63492072,0.00044646,9]
[341172347,1730521842697,-500.0,0.00044646,9]
[341172348,1730521842706,-500.0,0.00044646,9]
[341172349,1730521842715,-500.0,0.00044646,9]
[341172350,1730521842724,-500.0,0.00044646,9]
[341172351,1730521842734,-500.0,0.00044646,9]
[341172352,1730521842743,-500.0,0.00044646,9]
[341172353,1730521842752,-185.76994738,0.00044646,9]
[341172354,1730521842762,-500.0,0.00044646,9]
[341172355,1730521842773,-500.0,0.00044646,9]
[341172356,1730521842783,-242.88,0.00044646,9]
[341172357,1730521842794,-500.0,0.00044646,9]
[341172358,1730521842805,-358.15305125,0.00044646,9]
[341172359,1730521842815,-2963.2440251,0.00044655,2]
[341172360,1730521842825,-3083.4537038,0.00044655,2]
[341172361,1730521842835,-3203.6633824,0.00044655,2]
[341172362,1730521842844,-3323.8730611,0.00044655,2]
[341172363,1730521842855,-3444.0827398,0.00044655,2]
[341172364,1730521842864,-1387.28,0.00044658,2]
[341172365,1730521842873,-169.35,0.00044659,2]
[341172366,1730521842883,-503.23086788,0.00044673,10]
[341172367,1730521842895,-500.0,0.00044673,10]
[341172368,1730521842905,-505.84257795,0.00044673,10]
[341172369,1730521842915,-815.80436659,0.00044675,2]
[341172370,1730521842926,-1056.12,0.00044684,120]
[341172371,1730521842936,-697.18,0.00044685,9]
[341172372,1730521842946,-697.18,0.00044685,9]
[341172373,1730521842955,-697.18,0.00044685,9]
[341172374,1730521842966,-697.18,0.00044685,9]
[341172375,1730521842978,-697.18,0.00044685,9]
[341172376,1730521842989,-500.0,0.00044685,9]
[341172377,1730521843000,-697.18,0.00044685,9]
[341172378,1730521843011,-500.0,0.00044685,9]
[341172379,1730521843020,-697.18,0.00044685,9]
[341172380,1730521843030,-500.0,0.00044685,9]
[341172381,1730521843042,-697.18,0.00044685,9]
[341172382,1730521843053,-500.0,0.00044685,9]
[341172383,1730521843064,-697.18,0.00044685,9]
[341172384,1730521843075,-500.0,0.00044685,9]
[341172385,1730521843084,-697.18,0.00044685,9]
[341172386,1730521843094,-697.18,0.00044685,9]
[341172387,1730521843104,-500.0,0.00044685,9]
[341172388,1730521843114,-500.0,0.00044685,9]
[341172389,1730521843123,-697.32,0.00044685,9]
[341172390,1730521843135,-500.0,0.00044685,9]
[341172391,1730521843144,-500.0,0.00044685,9]
[341172392,1730521843153,-500.0,0.00044685,9]
[341172393,1730521843163,-280.32,0.00044685,9]
[341172394,1730521843171,-500.0,0.00044685,9]
[341172395,1730521843181,-500.0,0.00044685,9]
[341172396,1730521843191,-291.82178165,0.00044685,9]
[341172397,1730521843200,-594.78030994,0.00044685,2]
[341172398,1730521843209,-297.39015497,0.00044685,2]
[341172399,1730521843219,-297.39015497,0.00044685,2]
[341172400,1730521843228,-151.0,0.00044685,2]
[341172401,1730521843239,-239.62840719,0.00044685,2]
[341172402,1730521843249,-4608.50523049,0.00044685,2]
[341172403,1730521843259,-171.09392703,0.00044685,3]
[341172404,1730521843270,-68668.93571359,0.00044685,3]
[341172405,1730521843356,-0.20607958,0.00044685,3]
[341172406,1730521843425,217.17831533,0.0002445,120]
[341172407,1730521843566,-353.54,0.00043887,10]
[341172408,1730521843576,-162.53115909,0.00043999,9]
[341172409,1730521843588,-337.46884091,0.00043999,9]
[341172410,1730521843597,-605.47984106,0.00043999,9]
[341172411,1730521843613,-177.0,0.00044,120]
[341172412,1730521843623,-258.76883372,0.00044522,2]
[341172413,1730521843632,-150.0,0.00044573,2]
[341172414,1730521843642,-506.09367325,0.00044673,10]
[341172415,1730521843651,-5550.14653448,0.00044685,3]
[341172416,1730521843663,-1051.27520469,0.00044685,3]
[341172417,1730521843674,-559.12249875,0.00044685,3]
[341172418,1730521843685,-1593.75750387,0.00044685,3]
[341172419,1730521843698,-662.70634916,0.00044685,3]
[341172420,1730521843709,-4465.35320515,0.00044685,3]
[341172421,1730521843720,-807.664508,0.00044685,3]
[341172422,1730521843731,-2537.03952318,0.00044685,3]
[341172423,1730521843744,-2312.00152127,0.00044685,3]
[341172424,1730521843755,-2170.88474938,0.00044685,3]
[341172425,1730521843775,-150.0,0.00044414,2]
[341172426,1730521843785,-150.0,0.00044672,2]
[341172427,1730521843795,-456.45211275,0.00044685,3]
[341172428,1730521843813,-150.0,0.00044479,2]
[341172429,1730521843822,-150.0,0.00044607,2]
[341172430,1730521843831,-2159.80294293,0.00044685,3]
[341172431,1730521843842,-2815.13492071,0.00044685,3]
[341172432,1730521843855,-630.25841339,0.00044685,3]
[341172433,1730521843865,-852.22895866,0.00044685,3]
[341172434,1730521843884,-150.0,0.00044456,2]
[341172435,1730521843897,-150.0,0.00044477,2]
[341172436,1730521843906,-2654.1894928,0.00044685,3]
[341172437,1730521843931,-150.0,0.00044642,2]
[341172438,1730521843941,-150.0,0.00044657,2]
[341172439,1730521843951,-150.0,0.00044682,2]
[341172440,1730521843964,-100.50093868,0.00044685,3]
[341172443,1730521845515,-150.0,0.00044429,2]
[341172444,1730521845525,-150.0,0.00044454,2]
[341172445,1730521845535,-150.0,0.00044454,2]
[341172446,1730521845545,-150.0,0.00044458,2]
[341172447,1730521845555,-150.0,0.00044487,2]
[341172448,1730521845566,-150.0,0.00044499,2]
[341172449,1730521845576,-150.0,0.00044501,2]
[341172450,1730521845586,-150.0,0.00044502,2]
[341172451,1730521845596,-150.0,0.00044509,2]
[341172452,1730521845606,-150.0,0.00044512,2]
[341172453,1730521845615,-150.0,0.00044518,2]
[341172454,1730521845625,-150.0,0.00044547,2]
[341172455,1730521845635,-258.7688337,0.00044554,2]
[341172456,1730521845645,-150.0,0.00044567,2]
[341172457,1730521845655,-258.7688337,0.00044586,2]
[341172458,1730521845666,-150.0,0.00044602,2]
[341172459,1730521845676,-150.0,0.00044628,2]
[341172460,1730521845686,-150.0,0.00044631,2]
[341172461,1730521845697,-150.0,0.00044664,2]
[341172462,1730521845707,-150.0,0.00044678,2]
[341172463,1730521845717,-4188.37783892,0.00044685,3]
[341172464,1730521980656,157.72,0.00015342,2]
[341172490,1730523032265,-300.0,0.00019725,2]
[341172492,1730523032275,-1202.0,0.000241,2]
[341172494,1730523032285,-262.78646843,0.00041447,2]
[341172496,1730523032295,-611.37,0.00041547,2]
[341172498,1730523032304,-150.0,0.00043187,2]